fUST/lending_fUST_20260504
["ID","MTS","AMOUNT","RATE_DAILY","PERIOD"]
[421530254,1777828249000,-500.0,0.00016712,2]
[421530239,1777828249000,-1471.14,0.00016712,2]
[421530218,1777828249000,-1602.7,0.00016712,2]
[421530244,1777828249000,-1520.07,0.00016712,2]
[421530217,1777828249000,-627.51,0.00016712,2]
[421530220,1777828249000,-648.58,0.00016712,2]
[421530221,1777828249000,-500.0,0.00016712,2]
[421530219,1777828249000,-500.0,0.00016712,2]
[421530225,1777828249000,-500.0,0.00016712,2]
[421530226,1777828249000,-500.0,0.00016712,2]
[421530227,1777828249000,-500.0,0.00016712,2]
[421530223,1777828249000,-500.0,0.00016712,2]
[421530224,1777828249000,-936.24,0.00016712,2]
[421530222,1777828249000,-500.0,0.00016712,2]
[421530229,1777828249000,-500.0,0.00016712,2]
[421530230,1777828249000,-500.0,0.00016712,2]
[421530236,1777828249000,-500.0,0.00016712,2]
[421530231,1777828249000,-1167.9,0.00016712,2]
[421530233,1777828249000,-500.0,0.00016712,2]
[421530234,1777828249000,-511.61,0.00016712,2]
[421530232,1777828249000,-537.59,0.00016712,2]
[421530235,1777828249000,-500.0,0.00016712,2]
[421530228,1777828249000,-339.64827041,0.00016712,2]
[421530238,1777828249000,-500.0,0.00016712,2]
[421530237,1777828249000,-3116.83,0.00016712,2]
[421530306,1777828250000,-500.0,0.00016712,2]
[421530305,1777828250000,-500.0,0.00016712,2]
[421530301,1777828250000,-798.75,0.00016712,2]
[421530302,1777828250000,-500.0,0.00016712,2]
[421530304,1777828250000,-500.0,0.00016712,2]
[421530297,1777828250000,-500.0,0.00016712,2]
[421530300,1777828250000,-500.0,0.00016712,2]
[421530308,1777828250000,-500.0,0.00016712,2]
[421530299,1777828250000,-500.0,0.00016712,2]
[421530307,1777828250000,-500.0,0.00016712,2]
[421530310,1777828250000,-500.0,0.00016712,2]
[421530298,1777828250000,-500.0,0.00016712,2]
[421530303,1777828250000,-551.0,0.00016712,2]
[421530320,1777828250000,-500.0,0.00016712,2]
[421530319,1777828250000,-500.0,0.00016712,2]
[421530312,1777828250000,-582.92,0.00016712,2]
[421530315,1777828250000,-500.0,0.00016712,2]
[421530314,1777828250000,-696.37,0.00016712,2]
[421530313,1777828250000,-1053.18,0.00016712,2]
[421530317,1777828250000,-500.0,0.00016712,2]
[421530309,1777828250000,-500.0,0.00016712,2]
[421530318,1777828250000,-500.0,0.00016712,2]
[421530311,1777828250000,-500.0,0.00016712,2]
[421530316,1777828250000,-500.0,0.00016712,2]
[421530322,1777828250000,-500.0,0.00016712,2]
[421530324,1777828250000,-1269.9,0.00016712,2]
[421530325,1777828250000,-672.86,0.00016712,2]
[421530296,1777828250000,-4648.26,0.00016712,2]
[421530321,1777828250000,-500.0,0.00016712,2]
[421530293,1777828250000,-500.0,0.00016712,2]
[421530267,1777828250000,-500.0,0.00016712,2]
[421530290,1777828250000,-500.0,0.00016712,2]
[421530326,1777828250000,-607.37,0.00016712,2]
[421530270,1777828250000,-500.0,0.00016712,2]
[421530269,1777828250000,-437.20021055,0.00016712,2]
[421530265,1777828250000,-500.0,0.00016712,2]
[421530266,1777828250000,-500.0,0.00016712,2]
[421530264,1777828250000,-500.0,0.00016712,2]
[421530268,1777828250000,-500.0,0.00016712,2]
[421530271,1777828250000,-704.25,0.00016712,2]
[421530273,1777828250000,-687.47,0.00016712,2]
[421530272,1777828250000,-555.46,0.00016712,2]
[421530282,1777828250000,-989.18,0.00016712,2]
[421530274,1777828250000,-500.0,0.00016712,2]
[421530277,1777828250000,-500.0,0.00016712,2]
[421530281,1777828250000,-500.0,0.00016712,2]
[421530279,1777828250000,-500.0,0.00016712,2]
[421530276,1777828250000,-3626.45,0.00016712,2]
[421530278,1777828250000,-500.0,0.00016712,2]
[421530275,1777828250000,-500.0,0.00016712,2]
[421530280,1777828250000,-500.0,0.00016712,2]
[421530284,1777828250000,-500.0,0.00016712,2]
[421530294,1777828250000,-500.0,0.00016712,2]
[421530295,1777828250000,-500.0,0.00016712,2]
[421530287,1777828250000,-940.435603,0.00016712,2]
[421530285,1777828250000,-500.0,0.00016712,2]
[421530283,1777828250000,-500.0,0.00016712,2]
[421530286,1777828250000,-500.0,0.00016712,2]
[421530288,1777828250000,-687.86,0.00016712,2]
[421530291,1777828250000,-500.0,0.00016712,2]
[421530289,1777828250000,-1941.76,0.00016712,2]
[421530292,1777828250000,-500.0,0.00016712,2]
[421530330,1777828250000,-6923.22,0.00016712,2]
[421530355,1777828250000,-500.0,0.00016712,2]
[421530327,1777828250000,-1648.35,0.00016712,2]
[421530361,1777828250000,-500.0,0.00016712,2]
[421530366,1777828250000,-500.0,0.00016712,2]
[421530363,1777828250000,-500.0,0.00016712,2]
[421530362,1777828250000,-500.0,0.00016712,2]
[421530373,1777828250000,-500.0,0.00016712,2]
[421530364,1777828250000,-914.57,0.00016712,2]
[421530371,1777828250000,-500.0,0.00016712,2]
[421530367,1777828250000,-500.0,0.00016712,2]
[421530368,1777828250000,-500.0,0.00016712,2]
[421530370,1777828250000,-1578.86,0.00016712,2]
[421530365,1777828250000,-500.0,0.00016712,2]
[421530369,1777828250000,-3050.95,0.00016712,2]
[421530374,1777828250000,-500.0,0.00016712,2]
[421530372,1777828250000,-500.0,0.00016712,2]
[421530379,1777828250000,-500.0,0.00016712,2]
[421530380,1777828250000,-643.30817075,0.00016712,2]
[421530377,1777828250000,-1149.43,0.00016712,2]
[421530386,1777828250000,-2592.11,0.00016712,2]
[421530378,1777828250000,-1528.53,0.00016712,2]
[421530382,1777828250000,-500.0,0.00016712,2]
[421530385,1777828250000,-663.73,0.00016712,2]
[421530381,1777828250000,-3427.4,0.00016712,2]
[421530383,1777828250000,-500.0,0.00016712,2]
[421530384,1777828250000,-4147.94,0.00016712,2]
[421530388,1777828250000,-500.0,0.00016712,2]
[421530389,1777828250000,-11122.647743,0.00016712,2]
[421530387,1777828250000,-845.51,0.00016712,2]
[421530332,1777828250000,-3467.79,0.00016712,2]
[421530375,1777828250000,-500.0,0.00016712,2]
[421530390,1777828250000,-289.74934576,0.00016712,2]
[421530376,1777828250000,-950.2,0.00016712,2]
[421530356,1777828250000,-500.0,0.00016712,2]
[421530334,1777828250000,-502.42,0.00016712,2]
[421530353,1777828250000,-7043.71,0.00016712,2]
[421530333,1777828250000,-500.0,0.00016712,2]
[421530323,1777828250000,-500.0,0.00016712,2]
[421530331,1777828250000,-631.67,0.00016712,2]
[421530328,1777828250000,-2045.98,0.00016712,2]
[421530329,1777828250000,-500.0,0.00016712,2]
[421530336,1777828250000,-500.0,0.00016712,2]
[421530347,1777828250000,-1351.81,0.00016712,2]
[421530346,1777828250000,-500.0,0.00016712,2]
[421530337,1777828250000,-1418.78,0.00016712,2]
[421530344,1777828250000,-1210.74,0.00016712,2]
[421530342,1777828250000,-500.0,0.00016712,2]
[421530343,1777828250000,-500.0,0.00016712,2]
[421530340,1777828250000,-607.97,0.00016712,2]
[421530335,1777828250000,-500.0,0.00016712,2]
[421530352,1777828250000,-1004.48,0.00016712,2]
[421530358,1777828250000,-500.0,0.00016712,2]
[421530341,1777828250000,-500.0,0.00016712,2]
[421530351,1777828250000,-807.37,0.00016712,2]
[421530359,1777828250000,-500.0,0.00016712,2]
[421530348,1777828250000,-500.0,0.00016712,2]
[421530357,1777828250000,-693.33,0.00016712,2]
[421530354,1777828250000,-500.0,0.00016712,2]
[421530360,1777828250000,-3048.74,0.00016712,2]
[421530349,1777828250000,-701.14,0.00016712,2]
[421530345,1777828250000,-2124.33,0.00016712,2]
[421530339,1777828250000,-500.0,0.00016712,2]
[421530338,1777828250000,-500.0,0.00016712,2]
[421530350,1777828250000,-500.0,0.00016712,2]
[421530427,1777828251000,-500.0,0.00016712,2]
[421530434,1777828251000,-500.0,0.00016712,2]
[421530433,1777828251000,-1000.0,0.00016712,2]
[421530438,1777828251000,-458.46647356,0.00016712,2]
[421530431,1777828251000,-500.0,0.00016712,2]
[421530432,1777828251000,-500.44,0.00016712,2]
[421530420,1777828251000,-500.0,0.00016712,2]
[421530430,1777828251000,-500.0,0.00016712,2]
[421530429,1777828251000,-500.0,0.00016712,2]
[421530437,1777828251000,-500.0,0.00016712,2]
[421530426,1777828251000,-6872.28,0.00016712,2]
[421530435,1777828251000,-500.0,0.00016712,2]
[421530428,1777828251000,-500.0,0.00016712,2]
[421530436,1777828251000,-1101.64,0.00016712,2]
[421530453,1777828251000,-850.89,0.00016712,2]
[421530451,1777828251000,-500.0,0.00016712,2]
[421530450,1777828251000,-500.0,0.00016712,2]
[421530441,1777828251000,-500.0,0.00016712,2]
[421530442,1777828251000,-500.0,0.00016712,2]
[421530439,1777828251000,-500.0,0.00016712,2]
[421530445,1777828251000,-500.0,0.00016712,2]
[421530446,1777828251000,-500.0,0.00016712,2]
[421530443,1777828251000,-2654.2,0.00016712,2]
[421530444,1777828251000,-500.0,0.00016712,2]
[421530449,1777828251000,-500.0,0.00016712,2]
[421530447,1777828251000,-1198.04,0.00016712,2]
[421530448,1777828251000,-500.0,0.00016712,2]
[421530421,1777828251000,-500.0,0.00016712,2]
[421530440,1777828251000,-546.79,0.00016712,2]
[421530419,1777828251000,-500.0,0.00016712,2]
[421530398,1777828251000,-500.0,0.00016712,2]
[421530422,1777828251000,-500.0,0.00016712,2]
[421530463,1777828251000,-500.0,0.00016712,2]
[421530399,1777828251000,-484.11917244,0.00016712,2]
[421530392,1777828251000,-198.10591132,0.00016712,2]
[421530395,1777828251000,-500.0,0.00016712,2]
[421530396,1777828251000,-500.0,0.00016712,2]
[421530393,1777828251000,-500.0,0.00016712,2]
[421530394,1777828251000,-500.0,0.00016712,2]
[421530397,1777828251000,-500.0,0.00016712,2]
[421530400,1777828251000,-500.0,0.00016712,2]
[421530402,1777828251000,-500.0,0.00016712,2]
[421530401,1777828251000,-1640.08,0.00016712,2]
[421530403,1777828251000,-673.31,0.00016712,2]
[421530404,1777828251000,-915.36,0.00016712,2]
[421530405,1777828251000,-500.0,0.00016712,2]
[421530410,1777828251000,-1676.56,0.00016712,2]
[421530408,1777828251000,-500.0,0.00016712,2]
[421530406,1777828251000,-500.0,0.00016712,2]
[421530409,1777828251000,-2946.42,0.00016712,2]
[421530407,1777828251000,-222.1675748,0.00016712,2]
[421530412,1777828251000,-677.0,0.00016712,2]
[421530411,1777828251000,-500.0,0.00016712,2]
[421530414,1777828251000,-500.0,0.00016712,2]
[421530424,1777828251000,-930.31,0.00016712,2]
[421530413,1777828251000,-2319.93,0.00016712,2]
[421530425,1777828251000,-671.43,0.00016712,2]
[421530416,1777828251000,-500.0,0.00016712,2]
[421530418,1777828251000,-500.0,0.00016712,2]
[421530415,1777828251000,-500.0,0.00016712,2]
[421530423,1777828251000,-500.0,0.00016712,2]
[421530417,1777828251000,-1332.51,0.00016712,2]
[421530457,1777828251000,-500.0,0.00016712,2]
[421530391,1777828251000,-500.0,0.00016712,2]
[421530452,1777828251000,-500.0,0.00016712,2]
[421530492,1777828251000,-500.0,0.00016712,2]
[421530502,1777828251000,-6972.4,0.00016712,2]
[421530503,1777828251000,-500.0,0.00016712,2]
[421530504,1777828251000,-500.0,0.00016712,2]
[421530491,1777828251000,-500.0,0.00016712,2]
[421530494,1777828251000,-5394.85,0.00016712,2]
[421530497,1777828251000,-500.0,0.00016712,2]
[421530495,1777828251000,-500.0,0.00016712,2]
[421530500,1777828251000,-500.0,0.00016712,2]
[421530499,1777828251000,-635.76,0.00016712,2]
[421530493,1777828251000,-621.39,0.00016712,2]
[421530496,1777828251000,-500.0,0.00016712,2]
[421530498,1777828251000,-500.0,0.00016712,2]
[421530517,1777828251000,-672.86,0.00016712,2]
[421530506,1777828251000,-500.0,0.00016712,2]
[421530505,1777828251000,-500.0,0.00016712,2]
[421530507,1777828251000,-500.0,0.00016712,2]
[421530516,1777828251000,-500.0,0.00016712,2]
[421530508,1777828251000,-539.95,0.00016712,2]
[421530511,1777828251000,-6503.64,0.00016712,2]
[421530509,1777828251000,-2643.89,0.00016712,2]
[421530514,1777828251000,-500.0,0.00016712,2]
[421530512,1777828251000,-647.52,0.00016712,2]
[421530515,1777828251000,-774.52,0.00016712,2]
[421530510,1777828251000,-3634.9,0.00016712,2]
[421530513,1777828251000,-500.0,0.00016712,2]
[421530519,1777828251000,-500.0,0.00016712,2]
[421530518,1777828251000,-500.0,0.00016712,2]
[421530454,1777828251000,-687.79,0.00016712,2]
[421530486,1777828251000,-264.80961736,0.00016712,2]
[421530490,1777828251000,-2166.78,0.00016712,2]
[421530501,1777828251000,-500.0,0.00016712,2]
[421530487,1777828251000,-500.0,0.00016712,2]
[421530456,1777828251000,-19714.43,0.00016712,2]
[421530488,1777828251000,-500.0,0.00016712,2]
[421530461,1777828251000,-500.0,0.00016712,2]
[421530460,1777828251000,-6896.26,0.00016712,2]
[421530458,1777828251000,-641.41,0.00016712,2]
[421530462,1777828251000,-615.83,0.00016712,2]
[421530459,1777828251000,-500.0,0.00016712,2]
[421530455,1777828251000,-500.0,0.00016712,2]
[421530466,1777828251000,-2178.55,0.00016712,2]
[421530476,1777828251000,-3727.75,0.00016712,2]
[421530477,1777828251000,-500.0,0.00016712,2]
[421530467,1777828251000,-500.0,0.00016712,2]
[421530468,1777828251000,-500.0,0.00016712,2]
[421530465,1777828251000,-500.0,0.00016712,2]
[421530469,1777828251000,-500.0,0.00016712,2]
[421530464,1777828251000,-13239.19,0.00016712,2]
[421530470,1777828251000,-1493.22,0.00016712,2]
[421530479,1777828251000,-500.0,0.00016712,2]
[421530489,1777828251000,-500.0,0.00016712,2]
[421530484,1777828251000,-500.0,0.00016712,2]
[421530485,1777828251000,-500.0,0.00016712,2]
[421530481,1777828251000,-2613.39,0.00016712,2]
[421530471,1777828251000,-3642.87,0.00016712,2]
[421530480,1777828251000,-500.0,0.00016712,2]
[421530483,1777828251000,-500.0,0.00016712,2]
[421530478,1777828251000,-500.0,0.00016712,2]
[421530472,1777828251000,-1188.2,0.00016712,2]
[421530474,1777828251000,-1083.99,0.00016712,2]
[421530473,1777828251000,-500.0,0.00016712,2]
[421530475,1777828251000,-954.7,0.00016712,2]
[421530482,1777828251000,-4807.92,0.00016712,2]
[421530555,1777828252000,-500.0,0.00016712,2]
[421530559,1777828252000,-6002.79,0.00016712,2]
[421530558,1777828252000,-500.0,0.00016712,2]
[421530562,1777828252000,-500.0,0.00016712,2]
[421530560,1777828252000,-500.0,0.00016712,2]
[421530553,1777828252000,-500.0,0.00016712,2]
[421530556,1777828252000,-500.0,0.00016712,2]
[421530563,1777828252000,-500.0,0.00016712,2]
[421530565,1777828252000,-500.0,0.00016712,2]
[421530566,1777828252000,-1104.19,0.00016712,2]
[421530561,1777828252000,-500.0,0.00016712,2]
[421530564,1777828252000,-5764.09,0.00016712,2]
[421530557,1777828252000,-1159.87,0.00016712,2]
[421530567,1777828252000,-500.0,0.00016712,2]
[421530571,1777828252000,-500.0,0.00016712,2]
[421530570,1777828252000,-1584.79,0.00016712,2]
[421530575,1777828252000,-500.0,0.00016712,2]
[421530579,1777828252000,-500.0,0.00016712,2]
[421530574,1777828252000,-550.80783726,0.00016712,2]
[421530578,1777828252000,-500.0,0.00016712,2]
[421530568,1777828252000,-7056.96,0.00016712,2]
[421530572,1777828252000,-1004.51,0.00016712,2]
[421530569,1777828252000,-1494.09,0.00016712,2]
[421530580,1777828252000,-500.0,0.00016712,2]
[421530576,1777828252000,-500.0,0.00016712,2]
[421530577,1777828252000,-500.0,0.00016712,2]
[421530582,1777828252000,-500.0,0.00016712,2]
[421530554,1777828252000,-5630.77,0.00016712,2]
[421530573,1777828252000,-500.0,0.00016712,2]
[421530551,1777828252000,-500.0,0.00016712,2]
[421530524,1777828252000,-642.02,0.00016712,2]
[421530549,1777828252000,-500.0,0.00016712,2]
[421530581,1777828252000,-990.72,0.00016712,2]
[421530520,1777828252000,-500.0,0.00016712,2]
[421530525,1777828252000,-1000.0,0.00016712,2]
[421530522,1777828252000,-19122.11,0.00016712,2]
[421530526,1777828252000,-500.0,0.00016712,2]
[421530521,1777828252000,-500.0,0.00016712,2]
[421530523,1777828252000,-808.8,0.00016712,2]
[421530527,1777828252000,-500.0,0.00016712,2]
[421530529,1777828252000,-500.0,0.00016712,2]
[421530539,1777828252000,-17361.56,0.00016712,2]
[421530540,1777828252000,-1048.31,0.00016712,2]
[421530528,1777828252000,-581.67,0.00016712,2]
[421530532,1777828252000,-386.05524506,0.00016712,2]
[421530536,1777828252000,-530.1063214,0.00016712,2]
[421530550,1777828252000,-500.0,0.00016712,2]
[421530530,1777828252000,-500.0,0.00016712,2]
[421530534,1777828252000,-3402.9,0.00016712,2]
[421530533,1777828252000,-610.07,0.00016712,2]
[421530537,1777828252000,-500.0,0.00016712,2]
[421530538,1777828252000,-500.0,0.00016712,2]
[421530535,1777828252000,-500.0,0.00016712,2]
[421530541,1777828252000,-677.41,0.00016712,2]
[421530543,1777828252000,-11969.88,0.00016712,2]
[421530546,1777828252000,-500.0,0.00016712,2]
[421530552,1777828252000,-518.85,0.00016712,2]
[421530544,1777828252000,-500.0,0.00016712,2]
[421530548,1777828252000,-500.0,0.00016712,2]
[421530547,1777828252000,-164.45862222,0.00016712,2]
[421530545,1777828252000,-500.0,0.00016712,2]
[421530542,1777828252000,-500.0,0.00016712,2]
[421530531,1777828252000,-1380.88,0.00016712,2]
[421530593,1777828252000,-1970.84,0.00016712,2]
[421530588,1777828252000,-500.0,0.00016712,2]
[421530592,1777828252000,-1204.44,0.00016712,2]
[421530620,1777828252000,-500.0,0.00016712,2]
[421530621,1777828252000,-259.97016944,0.00016712,2]
[421530622,1777828252000,-519.88,0.00016712,2]
[421530625,1777828252000,-500.0,0.00016712,2]
[421530623,1777828252000,-500.0,0.00016712,2]
[421530632,1777828252000,-5795.61,0.00016712,2]
[421530624,1777828252000,-2399.54,0.00016712,2]
[421530626,1777828252000,-989.77,0.00016712,2]
[421530633,1777828252000,-500.0,0.00016712,2]
[421530631,1777828252000,-437.43282546,0.00016712,2]
[421530630,1777828252000,-6051.45,0.00016712,2]
[421530627,1777828252000,-500.0,0.00016712,2]
[421530629,1777828252000,-500.0,0.00016712,2]
[421530628,1777828252000,-500.0,0.00016712,2]
[421530635,1777828252000,-1209.29,0.00016712,2]
[421530646,1777828252000,-12235.85,0.00016712,2]
[421530647,1777828252000,-16986.26,0.00016712,2]
[421530645,1777828252000,-999.92,0.00016712,2]
[421530634,1777828252000,-4932.22,0.00016712,2]
[421530636,1777828252000,-17170.31,0.00016712,2]
[421530637,1777828252000,-500.0,0.00016712,2]
[421530638,1777828252000,-706.12,0.00016712,2]
[421530640,1777828252000,-87934.89,0.00016712,2]
[421530639,1777828252000,-515.5,0.00016712,2]
[421530641,1777828252000,-640.72,0.00016712,2]
[421530643,1777828252000,-500.0,0.00016712,2]
[421530583,1777828252000,-1078.11,0.00016712,2]
[421530644,1777828252000,-500.0,0.00016712,2]
[421530648,1777828252000,-500.0,0.00016712,2]
[421530609,1777828252000,-500.0,0.00016712,2]
[421530611,1777828252000,-500.0,0.00016712,2]
[421530642,1777828252000,-500.0,0.00016712,2]
[421530610,1777828252000,-1206.86,0.00016712,2]
[421530619,1777828252000,-1093.71,0.00016712,2]
[421530584,1777828252000,-219.84990249,0.00016712,2]
[421530585,1777828252000,-1079.61,0.00016712,2]
[421530586,1777828252000,-533.53,0.00016712,2]
[421530590,1777828252000,-500.0,0.00016712,2]
[421530591,1777828252000,-2363.52,0.00016712,2]
[421530589,1777828252000,-1342.23,0.00016712,2]
[421530594,1777828252000,-1899.43,0.00016712,2]
[421530596,1777828252000,-500.0,0.00016712,2]
[421530598,1777828252000,-500.0,0.00016712,2]
[421530597,1777828252000,-500.0,0.00016712,2]
[421530595,1777828252000,-500.0,0.00016712,2]
[421530604,1777828252000,-500.0,0.00016712,2]
[421530599,1777828252000,-2063.29,0.00016712,2]
[421530587,1777828252000,-500.0,0.00016712,2]
[421530603,1777828252000,-500.0,0.00016712,2]
[421530601,1777828252000,-477.27008188,0.00016712,2]
[421530615,1777828252000,-3043.09,0.00016712,2]
[421530616,1777828252000,-6045.68,0.00016712,2]
[421530613,1777828252000,-4494.95,0.00016712,2]
[421530607,1777828252000,-7098.38,0.00016712,2]
[421530614,1777828252000,-5319.86,0.00016712,2]
[421530617,1777828252000,-7667.42,0.00016712,2]
[421530608,1777828252000,-500.0,0.00016712,2]
[421530602,1777828252000,-12280.21,0.00016712,2]
[421530612,1777828252000,-706.37,0.00016712,2]
[421530618,1777828252000,-500.0,0.00016712,2]
[421530606,1777828252000,-500.0,0.00016712,2]
[421530605,1777828252000,-500.0,0.00016712,2]
[421530600,1777828252000,-500.0,0.00016712,2]
[421530679,1777828253000,-500.0,0.00016712,2]
[421530693,1777828253000,-500.0,0.00016712,2]
[421530682,1777828253000,-500.0,0.00016712,2]
[421530681,1777828253000,-1000.0,0.00016712,2]
[421530680,1777828253000,-762.05,0.00016712,2]
[421530688,1777828253000,-500.0,0.00016712,2]
[421530686,1777828253000,-500.0,0.00016712,2]
[421530684,1777828253000,-500.0,0.00016712,2]
[421530687,1777828253000,-500.0,0.00016712,2]
[421530683,1777828253000,-504.45390816,0.00016712,2]
[421530685,1777828253000,-554.19,0.00016712,2]
[421530689,1777828253000,-9758.48,0.00016712,2]
[421530691,1777828253000,-256.18039042,0.00016712,2]
[421530692,1777828253000,-500.0,0.00016712,2]
[421530694,1777828253000,-500.0,0.00016712,2]
[421530697,1777828253000,-3883.01,0.00016712,2]
[421530695,1777828253000,-500.0,0.00016712,2]
[421530698,1777828253000,-3620.82,0.00016712,2]
[421530700,1777828253000,-500.0,0.00016712,2]
[421530696,1777828253000,-1698.11,0.00016712,2]
[421530699,1777828253000,-8999.82,0.00016712,2]
[421530701,1777828253000,-619.53,0.00016712,2]
[421530713,1777828253000,-500.0,0.00016773,2]
[421530703,1777828253000,-500.0,0.00016712,2]
[421530678,1777828253000,-500.0,0.00016712,2]
[421530690,1777828253000,-507.44,0.00016712,2]
[421530676,1777828253000,-19203.83,0.00016712,2]
[421530663,1777828253000,-500.0,0.00016712,2]
[421530675,1777828253000,-1150.41,0.00016712,2]
[421530650,1777828253000,-500.0,0.00016712,2]
[421530651,1777828253000,-500.0,0.00016712,2]
[421530653,1777828253000,-545.12,0.00016712,2]
[421530659,1777828253000,-3922.19,0.00016712,2]
[421530655,1777828253000,-500.0,0.00016712,2]
[421530656,1777828253000,-548.33,0.00016712,2]
[421530649,1777828253000,-500.0,0.00016712,2]
[421530660,1777828253000,-500.0,0.00016712,2]
[421530657,1777828253000,-588.55,0.00016712,2]
[421530652,1777828253000,-441.50952782,0.00016712,2]
[421530661,1777828253000,-500.0,0.00016712,2]
[421530654,1777828253000,-537.95235281,0.00016712,2]
[421530677,1777828253000,-4048.48,0.00016712,2]
[421530658,1777828253000,-1029.11,0.00016712,2]
[421530665,1777828253000,-500.0,0.00016712,2]
[421530662,1777828253000,-4589.06,0.00016712,2]
[421530666,1777828253000,-1649.93,0.00016712,2]
[421530667,1777828253000,-378.32651673,0.00016712,2]
[421530669,1777828253000,-500.0,0.00016712,2]
[421530668,1777828253000,-500.0,0.00016712,2]
[421530670,1777828253000,-5615.46,0.00016712,2]
[421530672,1777828253000,-1061.47,0.00016712,2]
[421530671,1777828253000,-8137.77,0.00016712,2]
[421530674,1777828253000,-500.0,0.00016712,2]
[421530673,1777828253000,-500.0,0.00016712,2]
[421530704,1777828253000,-8704.99,0.00016712,2]
[421530664,1777828253000,-500.0,0.00016712,2]
[421530702,1777828253000,-500.0,0.00016712,2]
[421530732,1777828253000,-1559.0,0.00016828,2]
[421530712,1777828253000,-500.0,0.00016773,2]
[421530740,1777828253000,-500.0,0.00016973,2]
[421530750,1777828253000,-501.02941519,0.00016973,2]
[421530749,1777828253000,-500.0,0.00016973,2]
[421530739,1777828253000,-3240.53046138,0.00016969,2]
[421530741,1777828253000,-500.0,0.00016973,2]
[421530742,1777828253000,-500.0,0.00016973,2]
[421530751,1777828253000,-500.0,0.00016973,2]
[421530743,1777828253000,-500.0,0.00016973,2]
[421530744,1777828253000,-160.621104,0.00016973,2]
[421530745,1777828253000,-169.75603161,0.00016973,2]
[421530746,1777828253000,-500.0,0.00016973,2]
[421530747,1777828253000,-500.0,0.00016973,2]
[421530753,1777828253000,-500.0,0.00016973,2]
[421530763,1777828253000,-272.33686767,0.00016973,2]
[421530754,1777828253000,-500.0,0.00016973,2]
[421530755,1777828253000,-500.0,0.00016973,2]
[421530762,1777828253000,-532.48487483,0.00016973,2]
[421530758,1777828253000,-164.03016706,0.00016973,2]
[421530759,1777828253000,-500.0,0.00016973,2]
[421530757,1777828253000,-500.0,0.00016973,2]
[421530760,1777828253000,-500.0,0.00016973,2]
[421530752,1777828253000,-500.0,0.00016973,2]
[421530756,1777828253000,-501.53140191,0.00016973,2]
[421530761,1777828253000,-506.62922916,0.00016973,2]
[421530705,1777828253000,-500.0,0.00016712,2]
[421530736,1777828253000,-155.0,0.00016907,2]
[421530733,1777828253000,-155.0,0.00016828,2]
[421530748,1777828253000,-555.24600189,0.00016973,2]
[421530734,1777828253000,-620.0470644,0.00016832,30]
[421530735,1777828253000,-3888.0,0.000169,2]
[421530708,1777828253000,-781.48,0.00016712,2]